bitfinex-derivatives/quotes_ETHF0:USTF0_20250911
["timestamp","ask_amount","ask_price","bid_price","bid_amount"]
[1757562480989,2.53049572,4397.8,4397.7,0.5334]
[1757562481490,2.53049572,4397.8,4397.7,0.7466]
[1757562483596,2.53049572,4397.8,4397.7,0.5334]
[1757562483803,2.53049572,4397.8,4397.7,0.3177]
[1757562485403,2.53049572,4397.8,4397.1,0.3222]
[1757562485604,0.7231,4397.2,4397.1,0.7517]
[1757562485812,0.9521,4397.2,4396.6,0.3222]
[1757562486006,1.71424869,4396.7,4396.6,0.7517]
[1757562486303,0.7231,4396.7,4396.6,0.7517]
[1757562488198,0.99114869,4397.0,4396.6,0.7517]
[1757562488406,0.99114869,4397.0,4396.6,0.4295]
[1757562488605,0.99114869,4397.0,4396.9,0.4295]
[1757562488606,1.51064869,4397.0,4396.9,0.4295]
[1757562488806,0.229,4397.0,4396.9,0.7517]
[1757562489601,0.3106,4397.2,4397.0,0.1284]
[1757562489904,0.229,4397.2,4397.0,0.5579]
[1757562490304,0.229,4397.2,4397.1,0.7517]
[1757562490505,0.82716053,4397.2,4397.1,0.7517]
[1757562491311,1.03606053,4397.2,4397.1,0.7517]
[1757562492107,0.59816053,4397.2,4397.1,0.7517]
[1757562493107,0.80706053,4397.2,4397.1,0.7517]
[1757562493599,1.01066053,4397.2,4397.1,0.3222]
[1757562493800,1.32126053,4397.2,4397.1,0.3222]
[1757562494100,1.32126053,4397.2,4397.1,0.7517]
[1757562495814,1.55026053,4397.2,4397.1,0.7517]
[1757562497412,1.23966053,4397.2,4397.1,0.7517]
[1757562498012,0.6415,4397.2,4397.1,0.7517]
[1757562498310,0.4379,4397.2,4397.1,0.7517]
[1757562499213,0.229,4397.4,4397.1,0.4295]
[1757562499413,0.59806146,4397.3,4397.2,0.7517]
[1757562499611,0.4379,4397.4,4397.3,0.3222]
[1757562499807,1.03596535,4397.4,4397.3,0.7517]
[1757562503617,1.32116535,4397.4,4397.3,0.7517]
[1757562503815,1.23956535,4397.4,4397.3,0.7517]
[1757562504412,1.03596535,4397.4,4397.3,0.7517]
[1757562507419,1.32846535,4397.4,4397.3,0.7517]
[1757562507824,1.09946535,4397.4,4397.3,0.7517]
[1757562509120,0.59806535,4397.4,4397.3,0.7517]
[1757562509513,0.229,4397.6,4397.3,0.7517]
[1757562509719,0.2925,4397.9,4397.5,0.8615]
[1757562509914,0.2925,4397.9,4397.6,0.3214]
[1757562510124,0.6939,4397.9,4397.8,0.7411]
[1757562514132,0.6939,4397.9,4397.8,0.5338]
[1757562515234,0.6939,4397.9,4397.8,0.7411]
[1757562516729,0.2007,4398.1,4398.0,0.1204]
[1757562516921,0.2007,4398.1,4398.0,0.8615]
[1757562518227,0.2007,4398.2,4398.1,0.7411]
[1757562522136,0.229,4398.4,4398.2,0.3214]
[1757562522440,0.229,4398.4,4398.2,0.7411]
[1757562522441,0.2007,4398.3,4398.2,0.7411]
[1757562522630,0.4932,4398.3,4398.2,0.7411]
[1757562523226,0.229,4398.4,4398.3,0.3214]
[1757562523433,0.7222,4398.4,4398.3,0.7411]
[1757562523731,0.4297,4398.4,4398.3,0.7411]
[1757562523939,0.2007,4398.4,4398.3,0.7411]
[1757562524235,0.229,4398.5,4398.4,0.3214]
[1757562524430,0.229,4398.5,4398.4,0.7411]
[1757562524635,0.4297,4398.6,4398.5,0.8615]
[1757562524940,0.7222,4398.6,4398.5,0.8615]
[1757562525131,0.8639,4398.9,4398.8,0.4197]
[1757562525437,0.8639,4398.9,4398.8,0.7411]
[1757562529540,0.5714,4398.9,4398.8,0.7411]
[1757562530742,0.3707,4398.9,4398.8,0.7411]
[1757562531040,0.8639,4398.9,4398.8,0.7411]
[1757562532144,0.8639,4398.9,4398.1,0.3214]
[1757562532441,0.2007,4398.2,4398.1,0.96845]
[1757562532641,0.2007,4398.2,4398.1,0.7411]
[1757562536740,0.6939,4398.2,4398.1,0.7411]
[1757562536942,0.4932,4398.8,4398.7,0.2124]
[1757562537138,1.52495145,4398.8,4398.7,0.509]
[1757562537443,1.52495145,4398.8,4398.7,0.2966]
[1757562537846,0.7362,4398.3,4398.2,0.5087]
[1757562538241,0.7362,4398.3,4398.2,0.7246]
[1757562539551,0.229,4398.8,4398.2,0.7246]
[1757562539552,0.4936,4398.9,4398.2,0.428]
[1757562539750,0.9062,4398.9,4398.8,0.428]
[1757562539955,1.50338632,4398.9,4398.8,0.7246]
[1757562540452,0.97348632,4398.9,4398.8,0.7246]
[1757562541152,1.29708632,4398.9,4398.8,0.7246]
[1757562541454,0.6999,4398.9,4398.8,0.7246]
[1757562542352,0.97354568,4398.9,4398.8,0.7246]
[1757562542550,0.3763,4398.9,4398.8,0.7246]
[1757562543151,0.17,4398.9,4398.8,0.7246]
[1757562544651,0.229,4400.0,4399.1,0.2966]
[1757562544954,0.3236,4399.8,4399.1,0.2966]
[1757562545149,1.33345941,4399.7,4399.6,0.5087]
[1757562545550,1.33345941,4399.7,4399.6,0.7246]
[1757562545957,0.80355941,4399.7,4399.6,0.7246]
[1757562546150,0.3236,4400.2,4399.7,0.2966]
[1757562546452,0.2063,4399.8,4399.7,0.7246]
[1757562546649,0.80350049,4399.8,4399.7,0.7246]
[1757562547355,0.5299,4399.8,4399.7,0.7246]
[1757562547657,0.7362,4399.8,4399.7,0.7246]
[1757562549656,1.33283626,4399.8,4399.7,0.7246]
[1757562549851,0.4126,4399.3,4399.2,0.5087]
[1757562550059,0.7362,4399.3,4399.2,0.7246]
[1757562551654,0.2063,4399.8,4399.7,0.7246]
[1757562551854,0.229,4399.9,4399.7,0.70444569]
[1757562552054,0.6416,4399.9,4399.8,1.00104569]
[1757562552255,1.56175905,4399.9,4399.8,1.00104569]
[1757562552557,1.56175905,4399.9,4399.8,0.78514569]
[1757562552855,1.56175905,4399.9,4399.8,0.27644569]
[1757562553349,1.56175905,4399.9,4399.8,0.57304569]
[1757562554649,1.56175905,4399.9,4399.8,0.27644569]
[1757562555556,1.33275905,4399.9,4399.8,0.78514569]
[1757562556451,1.33275905,4399.9,4399.8,1.00104569]
[1757562556856,1.33275905,4399.9,4399.8,1.00095055]
[1757562558253,0.7362,4399.9,4399.8,1.00095055]
[1757562558552,0.7362,4399.9,4399.8,0.78505055]
[1757562558751,1.33198911,4399.9,4399.8,0.27635055]
[1757562559460,0.7362,4399.9,4399.8,0.27635055]
[1757562560761,1.33197741,4399.9,4399.8,0.27635055]
[1757562560961,1.33197741,4399.9,4399.8,0.78505055]
[1757562561658,0.9652,4399.9,4399.8,0.78505055]
[1757562565859,0.7362,4399.9,4399.8,0.78505055]
[1757562566060,0.9652,4399.9,4399.8,0.78505055]
[1757562566263,1.56120966,4399.9,4399.8,1.00095055]
[1757562566461,0.7362,4399.9,4399.8,1.00095055]
[1757562566662,0.9652,4399.9,4399.8,1.00095055]
[1757562566965,1.33222129,4399.9,4399.8,1.00095055]
[1757562567158,1.56122129,4399.9,4399.8,1.00095055]
[1757562568659,1.33222129,4399.9,4399.8,1.00095055]
[1757562568961,1.00862129,4399.9,4399.8,1.00095055]
[1757562569662,1.30412129,4399.9,4399.8,1.00095055]
[1757562571864,0.59602129,4399.9,4399.8,1.00095055]
[1757562572065,0.59602129,4399.9,4399.8,1.0012309]
[1757562572568,0.80702129,4399.9,4399.8,1.0012309]
[1757562572767,1.31592129,4399.9,4399.8,1.0012309]
[1757562574166,1.31592129,4399.9,4399.8,0.7246]
[1757562574370,1.31592129,4399.9,4399.8,1.00154411]
[1757562575970,1.31592129,4399.9,4399.8,0.78564411]
[1757562581672,1.31592129,4399.9,4399.8,0.5087]
[1757562582976,1.31592129,4399.9,4399.1,0.3215]
[1757562583175,0.7199,4399.2,4399.1,0.7306]
[1757562583369,1.31592129,4399.2,4399.1,0.7306]
[1757562584168,1.02042129,4399.2,4399.1,0.7306]
[1757562584370,0.80702129,4399.2,4399.1,0.7306]
[1757562584570,0.59602129,4399.2,4399.1,0.7306]
[1757562584772,0.59602129,4399.2,4399.1,0.4091]
[1757562584969,0.229,4399.4,4399.1,0.4091]
[1757562584970,0.59602129,4399.3,4399.1,0.4091]
[1757562585274,0.59602129,4399.2,4399.1,0.4091]
[1757562585577,0.59714334,4399.3,4399.2,0.4091]
[1757562585775,0.229,4399.4,4399.3,0.3215]
[1757562586076,1.33265444,4399.4,4399.3,0.7306]
[1757562586276,1.10365444,4399.4,4399.3,0.7306]
[1757562586674,0.80815444,4399.4,4399.3,0.7306]
[1757562586976,1.10365444,4399.4,4399.3,0.7306]
[1757562587366,1.31705444,4399.4,4399.3,0.7306]
[1757562587773,1.31705444,4399.4,4399.3,0.5212]
[1757562587971,1.31705444,4399.4,4399.0,0.1235]
[1757562588176,0.7199,4398.7,4398.6,0.7306]
[1757562588373,1.31705444,4398.7,4398.6,0.7306]
[1757562588879,1.02155444,4398.7,4398.6,0.7306]
[1757562589473,0.4244,4398.7,4398.6,0.7306]
[1757562590278,0.7199,4398.7,4398.6,0.7306]
[1757562590774,0.211,4398.7,4398.6,0.7306]
[1757562591078,0.2955,4399.0,4398.7,0.3215]
[1757562591280,0.5065,4399.0,4398.9,0.7306]
[1757562591480,0.7199,4399.0,4398.9,0.7306]
[1757562593786,0.7199,4399.0,4398.9,0.5212]
[1757562594281,0.7199,4399.0,4398.5,0.1235]
[1757562594581,0.8372,4399.0,4398.6,0.3215]
[1757562596883,0.7199,4399.0,4398.9,0.5212]
[1757562597382,0.7199,4399.0,4398.5,0.1235]
[1757562597383,0.1984,4399.3,4399.2,0.4019]
[1757562597682,1.1021439,4399.3,4399.2,0.7166]
[1757562597982,1.3159439,4399.3,4399.2,0.7166]
[1757562598678,0.5961439,4399.3,4399.2,0.7166]
[1757562598874,32.744,4400.3,4399.3,0.5103]
[1757562598875,0.5214,4399.4,4399.3,0.5103]
[1757562599080,0.7198,4399.4,4399.3,0.7166]
[1757562600282,0.7198,4399.4,4399.3,0.5103]
[1757562603986,0.7198,4399.4,4399.1,0.3147]
[1757562604386,0.4122,4399.4,4398.7,0.3147]
[1757562604580,0.229,4399.5,4399.2,1.39216883]
[1757562604782,0.12,4400.0,4399.2,1.39216883]
[1757562604981,0.3076,4399.8,4399.2,1.39216883]
[1757562605181,0.1984,4399.7,4399.6,0.7166]
[1757562605381,0.79457468,4399.7,4399.6,0.7166]
[1757562605584,0.1984,4399.7,4399.6,0.7166]
[1757562606278,0.229,4399.9,4399.7,0.3147]
[1757562606481,0.229,4399.9,4399.8,0.7166]
[1757562606779,0.8251555,4399.9,4399.8,0.7166]
[1757562607081,1.0235555,4399.9,4399.8,0.7166]
[1757562607481,0.7945555,4399.9,4399.8,0.7166]
[1757562607684,1.5449555,4399.9,4399.8,0.7166]
[1757562610195,1.2373555,4399.9,4399.8,0.7166]
[1757562610685,1.3159555,4399.9,4399.8,0.7166]
[1757562610888,1.5449555,4399.9,4399.8,0.7166]
[1757562611081,1.5449555,4399.9,4399.5,0.1171]
[1757562611282,0.4122,4399.7,4399.6,0.1956]
[1757562611482,0.7198,4399.7,4399.6,0.5103]
[1757562612088,0.9488,4399.7,4399.6,0.5103]
[1757562613084,0.9488,4399.7,4399.0,0.1171]
[1757562613085,0.9488,4399.7,4399.1,0.3147]
[1757562613290,0.7198,4399.2,4399.1,0.7166]
[1757562621684,0.7198,4399.2,4399.1,0.5103]
[1757562621996,2.30788575,4399.2,4398.6,0.3147]
[1757562622296,0.7198,4399.2,4398.6,0.3147]
[1757562622687,0.7198,4399.2,4399.1,0.5103]
[1757562624398,1.31769869,4399.2,4399.1,0.5103]
[1757562625401,1.31769869,4399.2,4398.6,0.3147]
[1757562625697,0.7198,4398.7,4398.6,0.5103]
[1757562628604,0.7198,4398.7,4398.6,0.7166]
[1757562629404,0.8297,4398.7,4398.6,0.7166]
[1757562630601,0.8297,4398.7,4398.1,0.3048]
[1757562630803,0.6983,4398.2,4398.1,0.5138]
[1757562630998,0.6983,4398.2,4398.1,0.7104]
[1757562631798,0.2954,4398.5,4398.1,0.7104]
[1757562631999,0.2954,4398.5,4398.2,0.3048]
[1757562632204,0.5007,4398.5,4398.4,0.4056]
[1757562632405,0.5007,4398.5,4398.4,0.7104]
[1757562634805,0.6983,4398.5,4398.4,0.7104]
[1757562640305,0.6983,4398.5,4398.4,0.3048]
[1757562640502,0.8172,4398.5,4398.0,0.1204]
[1757562640812,1.32916883,4398.7,4398.0,0.1204]
[1757562640813,1.49096883,4398.4,4398.3,0.7104]
[1757562641008,1.19556883,4398.4,4398.3,0.7104]
[1757562641202,1.68856883,4398.4,4398.3,0.7104]
[1757562641818,1.68856883,4398.4,4398.3,0.5138]
[1757562642108,1.68856883,4398.4,4398.3,0.3048]
[1757562645011,1.68856883,4398.4,4398.0,0.1204]
[1757562645412,1.68856883,4398.4,4398.1,0.3048]
[1757562646315,1.68856883,4398.4,4397.6,0.3048]
[1757562646513,0.2954,4398.3,4397.7,0.3048]
[1757562647612,0.2053,4397.8,4397.7,0.7104]
[1757562647817,0.5007,4397.8,4397.7,0.7104]
[1757562648611,0.2954,4398.2,4397.7,0.4056]
[1757562648814,1.88556883,4398.4,4398.3,0.7104]
[1757562649309,0.8953,4398.4,4398.3,0.7104]
[1757562649510,1.88556883,4398.4,4398.3,0.7104]
[1757562650616,1.68856883,4398.4,4398.3,0.7104]
[1757562651620,1.68856883,4398.4,4398.3,0.5138]
[1757562653919,1.91586883,4398.4,4398.3,0.5138]
[1757562654415,1.91586883,4398.4,4398.0,0.1209]
[1757562654622,1.91586883,4398.4,4398.1,0.3048]
[1757562657122,1.91586883,4398.4,4397.5,0.1171]
[1757562657322,1.70586883,4398.1,4398.0,0.7092]
[1757562658917,1.70586883,4398.1,4398.0,0.5052]
[1757562659111,0.7156,4397.7,4397.6,0.5052]
[1757562659314,1.70586883,4397.7,4397.6,0.5052]
[1757562660723,1.70586883,4397.7,4397.6,0.3081]
[1757562660926,1.70586883,4397.7,4397.6,0.5052]
[1757562661524,1.70586883,4397.7,4397.1,0.3081]
[1757562661729,1.70586883,4397.4,4397.3,0.7092]
[1757562664427,0.4222,4397.4,4397.3,0.7092]
[1757562664926,0.7156,4397.4,4397.3,0.7092]
[1757562668028,0.7156,4397.4,4397.3,0.5052]
[1757562669324,0.216,4397.4,4397.3,0.7092]
[1757562669828,0.216,4397.6,4397.5,0.8285]
[1757562670726,0.7156,4397.6,4397.5,0.8285]
[1757562671122,0.216,4398.0,4397.9,0.4011]
[1757562671322,1.04295925,4398.0,4397.9,0.7092]
[1757562671531,1.54255925,4398.0,4397.9,0.7092]
[1757562671735,0.9446,4398.0,4397.9,0.7092]
[1757562672727,1.66234949,4398.0,4397.6,0.3081]
[1757562673035,1.88922113,4397.7,4397.1,0.3081]
[1757562677939,0.7156,4397.2,4397.1,0.3081]
[1757562678139,0.943,4397.2,4397.1,0.5052]
[1757562678334,0.943,4397.2,4397.1,0.7092]
[1757562679332,0.6496,4397.2,4397.1,0.7092]
[1757562680243,0.943,4397.2,4397.1,0.5052]
[1757562684646,0.943,4397.2,4397.1,0.7092]
[1757562685346,0.6496,4397.2,4397.1,0.7092]
[1757562685546,0.943,4397.2,4397.1,0.7092]
[1757562685850,0.4434,4397.2,4397.1,0.7092]
[1757562688246,0.2274,4397.2,4397.1,0.7092]
[1757562690642,0.4344,4397.2,4397.1,0.7092]
[1757562690849,0.7431,4397.2,4397.1,0.7092]
[1757562691642,0.9429,4397.2,4397.1,0.5052]
[1757562692247,0.9429,4397.2,4397.1,0.7033]
[1757562693252,0.9429,4397.2,4396.6,0.3091]
[1757562693548,0.9429,4397.2,4397.1,0.5048]
[1757562693850,0.9429,4397.2,4397.1,0.7029]
[1757562696046,0.2274,4397.2,4397.1,0.7029]
[1757562704861,0.2274,4397.2,4397.1,4.7029]
[1757562705248,0.4344,4397.2,4397.1,0.7029]
[1757562705653,0.2274,4397.2,4397.1,0.7029]
[1757562711850,0.4344,4397.2,4397.1,0.7029]
[1757562712561,0.2274,4397.2,4397.1,0.7029]
[1757562713167,0.7155,4397.1,4397.0,0.822]
[1757562713359,0.4068,4397.1,4397.0,0.822]
[1757562713664,0.207,4397.1,4397.0,0.822]
[1757562714160,0.3087,4397.7,4397.1,0.3091]
[1757562714765,0.6341,4397.6,4397.5,0.1957]
[1757562714959,0.9428,4397.6,4397.5,0.5048]
[1757562716859,0.9428,4397.6,4397.5,0.7029]
[1757562719765,0.9428,4397.6,4397.1,0.3219]
[1757562720758,0.7005,4397.2,4397.1,0.5279]
[1757562720959,0.7005,4397.2,4397.1,0.7391]
[1757562722354,0.7005,4397.2,4396.5,0.1209]
[1757562722560,0.7005,4396.7,4396.6,0.5279]
[1757562722860,0.2273,4397.6,4397.3,0.7391]
[1757562722861,0.198,4397.4,4397.3,0.7391]
[1757562723463,0.4976,4397.4,4397.3,0.7391]
[1757562723667,0.7005,4397.4,4397.3,0.7391]
[1757562726974,0.9279,4397.4,4397.3,0.7391]
[1757562727169,0.2996,4398.5,4397.4,0.3219]
[1757562727472,0.7005,4398.5,4398.4,0.7391]
[1757562733576,0.8205,4398.5,4397.6,0.3219]
[1757562733775,0.7005,4397.7,4397.6,0.7391]
[1757562734577,0.4009,4397.7,4397.6,0.7391]
[1757562737780,0.7005,4397.7,4397.6,0.7391]
[1757562742493,0.198,4397.7,4397.6,0.7391]
[1757562742796,0.198,4398.0,4397.9,0.7391]
[1757562744797,0.2996,4398.3,4397.9,0.7391]
[1757562744996,0.2996,4398.3,4398.0,0.4467]
[1757562745200,0.4976,4398.3,4398.2,0.7391]
[1757562746302,0.7005,4398.3,4398.2,0.7391]
[1757562747698,1.69147225,4398.3,4397.6,0.2994]
[1757562748497,0.7201,4397.6,4397.5,0.5272]
[1757562748893,0.3993,4397.6,4397.5,0.8266]
[1757562749093,0.3208,4397.9,4397.5,0.5272]
[1757562749289,0.1951,4397.9,4397.8,0.4024]
[1757562749493,0.1951,4397.9,4397.8,0.7018]
[1757562749700,0.5159,4397.9,4397.8,0.7018]
[1757562750203,0.1951,4397.9,4397.8,0.7018]
[1757562750504,0.5159,4398.2,4398.1,0.7018]
[1757562750697,0.1951,4398.2,4398.1,0.7018]
[1757562751004,0.5159,4398.2,4398.1,0.7018]
[1757562754906,0.7201,4398.2,4398.1,0.7018]
[1757562769414,0.1951,4398.2,4398.1,0.7018]
[1757562779220,0.99097225,4398.7,4398.1,0.7018]
[1757562779517,1.13091301,4398.6,4398.5,0.8434]
[1757562779816,1.34061301,4398.6,4398.5,0.8434]
[1757562780214,0.81311301,4398.6,4398.5,0.8434]
[1757562780411,0.99097225,4400.4,4398.5,0.8434]
[1757562780412,0.3178,4399.3,4399.0,0.1233]
[1757562780606,0.2149,4399.3,4399.2,0.7201]
[1757562781013,0.81307984,4399.3,4399.2,0.7201]
[1757562781320,0.2149,4399.3,4399.2,0.7201]
[1757562782719,0.5327,4399.3,4399.2,0.7201]
[1757562782920,0.7424,4399.3,4399.2,0.7201]
[1757562783120,1.73337225,4399.3,4399.2,0.3062]
[1757562785123,0.7424,4398.8,4398.7,0.21]
[1757562785721,0.7424,4398.8,4398.7,0.5162]
[1757562791019,0.2149,4398.9,4398.8,0.3062]
[1757562791220,0.7424,4398.9,4398.8,0.7201]
[1757562792423,0.2149,4398.9,4398.8,0.7201]
[1757562793024,0.9714,4399.4,4399.3,0.5162]
[1757562793927,0.17876531,4399.9,4399.3,0.4139]
[1757562793928,0.229,4399.5,4399.3,0.4139]
[1757562794323,0.2149,4399.4,4399.3,0.4139]
[1757562794526,0.5327,4399.4,4399.3,0.7201]
[1757562794821,0.229,4399.7,4399.6,0.4139]
[1757562795025,0.7617,4399.7,4399.6,0.7201]
[1757562795322,0.5327,4399.7,4399.6,0.7201]
[1757562795528,0.7424,4399.7,4399.6,0.7201]
[1757562796014,0.229,4399.8,4399.6,0.4139]
[1757562796218,0.4439,4399.8,4399.7,0.7201]
[1757562796418,0.9714,4399.8,4399.7,0.7201]
[1757562796615,0.81104008,4399.8,4399.7,0.7201]
[1757562798026,0.59614008,4399.8,4399.7,0.7201]
[1757562798231,1.17295371,4400.2,4399.7,0.7201]
[1757562798523,1.03997924,4400.1,4400.0,0.8434]
[1757562798725,0.9714,4400.1,4400.0,0.7201]
[1757562798930,0.9714,4400.1,4400.0,0.3062]
[1757562799329,0.9714,4400.1,4399.6,0.3062]
[1757562799522,0.7424,4399.7,4399.6,0.7201]
[1757562799723,0.2149,4399.8,4399.7,0.7201]
[1757562799933,0.5327,4399.8,4399.7,0.7201]
[1757562800532,0.7424,4399.8,4399.7,0.7201]
[1757562800725,0.229,4400.0,4399.8,0.3062]
[1757562800925,0.7424,4399.9,4399.8,0.5101]
[1757562801126,0.7424,4399.9,4399.8,0.7201]
[1757562801333,0.2149,4399.9,4399.8,0.7201]
[1757562801524,0.229,4400.0,4399.9,0.3062]
[1757562801831,0.7617,4400.0,4399.9,0.7201]
[1757562802232,0.9714,4400.0,4399.9,0.7201]
[1757562804638,0.9714,4400.0,4399.9,0.5162]
[1757562804838,1.0914,4400.0,4399.5,0.1233]
[1757562805039,1.0914,4400.0,4399.6,0.3062]
[1757562805248,1.0914,4400.0,4399.5,0.1233]
[1757562805843,1.0914,4400.0,4399.6,0.3062]
[1757562807439,0.8624,4400.0,4399.9,0.5349]
[1757562807645,1.0914,4400.0,4399.9,0.5349]
[1757562807833,0.9714,4400.0,4399.9,0.5349]
[1757562808239,0.9714,4400.0,4399.5,0.1233]
[1757562808240,1.0887,4400.0,4399.6,0.3249]
[1757562808947,1.0887,4400.0,4399.9,0.5295]
[1757562809651,1.68504126,4400.0,4399.9,0.5295]
[1757562814050,1.68504126,4400.0,4399.9,0.3249]
[1757562814951,1.68504126,4400.0,4399.5,0.1233]
[1757562815142,1.0887,4400.0,4399.5,0.1233]
[1757562815442,1.0887,4400.0,4399.6,0.3249]
[1757562815650,1.0887,4400.0,4399.5,0.1233]
[1757562816048,1.0887,4400.0,4399.6,0.3249]
[1757562816840,1.0887,4400.0,4399.5,0.1233]
[1757562817550,1.0887,4400.0,4399.6,0.3249]
[1757562818147,0.59646143,4399.9,4399.8,0.2046]
[1757562818451,1.02636143,4399.9,4399.8,0.5295]
[1757562818650,1.02636143,4399.9,4399.8,0.7382]
[1757562818850,1.56516143,4399.9,4399.8,0.7382]
[1757562819044,1.56515987,4399.9,4399.8,0.7382]
[1757562819654,0.9687,4399.9,4399.8,0.7382]
[1757562823155,1.56566988,4399.9,4399.8,0.7382]
[1757562823556,0.9687,4399.9,4399.8,0.7382]
[1757562824150,1.56569029,4399.9,4399.8,0.7382]
[1757562826557,1.56569029,4399.9,4399.8,0.3249]
[1757562826857,1.56569029,4399.9,4399.1,0.3249]
[1757562827062,0.526,4399.2,4399.1,0.9655]
[1757562827353,0.7397,4399.2,4399.1,0.7382]
[1757562831770,0.7397,4399.2,4399.1,0.3249]
[1757562832060,1.33710941,4399.2,4398.6,0.3249]
[1757562832266,0.59713346,4399.1,4398.6,0.3249]
[1757562832561,0.7397,4399.2,4398.6,0.3249]
[1757562832760,0.2162,4398.7,4398.6,0.7382]
[1757562833454,0.7397,4398.7,4398.6,0.7382]
[1757562834056,0.7397,4398.7,4398.6,0.5295]
[1757562836463,0.7397,4398.7,4398.6,0.3249]
[1757562836660,0.2137,4398.2,4398.1,0.7382]
[1757562836862,0.4299,4398.2,4398.1,0.7382]
[1757562837766,0.7374,4398.2,4398.1,0.7382]
[1757562838070,0.4299,4398.2,4398.1,0.7382]
[1757562838764,0.6439,4398.8,4398.7,0.7141]
[1757562839069,0.2016,4398.8,4398.7,0.7141]
[1757562839259,0.3075,4399.1,4398.5,0.119]
[1757562839260,0.9144,4399.1,4399.0,0.8331]
[1757562840067,0.7224,4399.1,4399.0,0.8331]
[1757562842468,0.7224,4399.1,4399.0,0.7141]
[1757562842669,0.2016,4398.6,4398.5,0.5169]
[1757562843163,0.132,4399.1,4398.6,0.3162]
[1757562843164,0.4165,4399.1,4398.6,0.3162]
[1757562843361,0.8314,4399.1,4399.0,0.8331]
[1757562843561,0.5239,4399.1,4399.0,0.8331]
[1757562844271,0.7224,4399.1,4399.0,0.8331]
[1757562844562,0.7224,4399.1,4399.0,0.7141]
[1757562847971,0.7224,4399.1,4399.0,0.5151]
[1757562848169,0.2016,4398.2,4398.1,0.7141]
[1757562848371,0.1291,4399.0,4398.1,0.7141]
[1757562848372,0.99063228,4398.8,4398.1,0.7141]
[1757562848569,0.3075,4398.7,4398.2,0.3162]
[1757562848774,0.7224,4398.7,4398.6,0.7141]
[1757562849272,0.4149,4398.7,4398.6,0.7141]
[1757562849575,0.2016,4398.7,4398.6,0.7141]
[1757562850070,0.5091,4398.7,4398.6,0.7141]
[1757562851870,0.7224,4398.7,4398.6,0.7141]
[1757562867578,0.2016,4398.7,4398.6,0.7141]
[1757562867783,0.99063228,4398.9,4398.6,0.7141]
[1757562867974,0.99063228,4398.9,4398.7,0.3224]
[1757562868185,0.2037,4398.9,4398.8,0.4077]
[1757562868484,0.2037,4398.9,4398.8,0.7301]
[1757562868485,1.11329126,4398.9,4398.8,0.7301]
[1757562870090,1.32799126,4398.9,4398.8,0.7301]
[1757562870882,1.55699126,4398.9,4398.8,0.7301]
[1757562883599,1.32799126,4398.9,4398.8,0.7301]
[1757562883897,1.55699126,4398.9,4398.8,0.7301]
[1757562884195,0.7305,4398.3,4398.2,0.7301]
[1757562884388,1.72113228,4398.3,4398.2,0.7301]
[1757562884584,0.7305,4398.3,4398.2,0.7301]
[1757562888102,0.4184,4398.3,4398.2,0.7301]
[1757562890104,0.7305,4398.3,4398.2,0.7301]
[1757562892607,0.7305,4398.3,4398.2,0.3224]
[1757562892802,0.3121,4398.2,4397.7,0.3224]
[1757562893108,0.229,4398.4,4397.7,0.3224]
[1757562893109,0.2037,4397.8,4397.7,0.95748]
[1757562893301,0.2037,4397.8,4397.7,0.7301]
[1757562893502,0.2037,4397.8,4397.7,0.95748999]
[1757562893696,0.2037,4397.8,4397.7,0.7301]
[1757562894111,0.3121,4398.0,4397.7,0.7301]
[1757562894305,0.3121,4398.0,4397.8,0.3224]
[1757562894510,0.5158,4398.0,4397.9,0.7301]
[1757562895602,0.7305,4398.0,4397.9,0.7301]
[1757562902313,0.4184,4398.0,4397.9,0.7301]
[1757562905315,0.7425,4398.0,4397.9,0.7301]
[1757562907014,0.4184,4398.0,4397.9,0.7301]
[1757562908215,0.7425,4398.0,4397.9,0.7301]
[1757562910819,0.7425,4398.0,4397.5,0.128]
[1757562910820,0.3241,4398.3,4398.0,0.1185]
[1757562911011,0.5228,4398.3,4398.2,0.7127]
[1757562911212,0.7199,4398.3,4398.2,0.7127]
[1757562912140,0.7199,4398.3,4398.2,0.5105]
[1757562913331,0.7199,4398.3,4397.6,0.303]
[1757562914029,1.89316688,4398.3,4397.6,0.303]
[1757562914828,0.7199,4398.3,4397.6,0.303]
[1757562915530,0.9489,4398.2,4398.1,0.5105]
[1757562919132,0.7199,4398.2,4398.1,0.5105]
[1757562919330,0.9489,4398.2,4398.1,0.5105]
[1757562920335,0.9489,4398.2,4398.1,0.7127]
[1757562920633,0.7199,4398.2,4398.1,0.7127]
[1757562922937,0.3958,4398.2,4398.1,0.7127]
[1757562923639,0.7199,4398.2,4398.1,0.7127]
[1757562923931,0.3958,4398.2,4398.1,0.7127]
[1757562924136,0.7199,4398.2,4398.1,0.7127]
[1757562931243,0.7199,4398.2,4398.1,0.303]
[1757562931541,0.7199,4398.2,4398.1,0.4981]
[1757562932837,0.7199,4398.2,4397.6,0.3124]
[1757562932838,1.31829053,4398.2,4397.6,0.3124]
[1757562933146,0.7199,4398.2,4397.6,0.3124]
[1757562937243,1.17326688,4398.8,4397.5,0.128]
[1757562937244,0.1173,4400.0,4399.0,0.1246]
[1757562937547,0.1225,4400.5,4399.7,0.4115]
[1757562937548,1.21647022,4399.9,4399.7,0.4115]
[1757562937756,0.2003,4400.5,4400.4,0.7239]
[1757562938042,1.30451502,4400.5,4400.4,0.7239]
[1757562940243,0.7085,4400.5,4400.4,0.7239]
[1757562940445,0.831,4400.5,4400.1,0.3124]
[1757562940745,0.831,4400.5,4400.0,0.1246]
[1757562941944,0.831,4400.5,4400.1,0.3124]